[Event "Early-Titled-Tuesday-Blitz-July-09-2024"]
[Site "Chess.com"]
[Date "2024.07.09"]
[Round "1"]
[White "JEHUBNER"]
[Black "Gnechko_Ruslan"]
[Result "1-0"]
[WhiteElo "2019"]
[BlackElo "2532"]
[TimeControl "180+1"]
[EndTime "8:05:59 PDT"]
[Termination "JEHUBNER won by resignation"]

1. e4 {[%clk 0:03:00.9]} 1... c5 {[%clk 0:02:56.2]} 2. c3 {[%clk 0:02:14.6]}
2... Nf6 {[%clk 0:02:44.4]} 3. e5 {[%clk 0:02:14]} 3... Nd5 {[%clk 0:02:44.9]}
4. d4 {[%clk 0:02:14.4]} 4... cxd4 {[%clk 0:02:45.4]} 5. cxd4 {[%clk 0:02:15.3]}
5... d6 {[%clk 0:02:44.3]} 6. Nf3 {[%clk 0:02:15.6]} 6... Nc6 {[%clk 0:02:44.1]}
7. exd6 {[%clk 0:02:15.5]} 7... e6 {[%clk 0:02:43.5]} 8. Nc3 {[%clk 0:02:15.8]}
8... Bxd6 {[%clk 0:02:40.2]} 9. Bd3 {[%clk 0:02:15.7]} 9... O-O {[%clk
0:02:38.7]} 10. O-O {[%clk 0:02:15.9]} 10... h6 {[%clk 0:02:35.7]} 11. Nxd5
{[%clk 0:02:10.8]} 11... exd5 {[%clk 0:02:35.5]} 12. Re1 {[%clk 0:02:10.1]}
12... Bg4 {[%clk 0:02:34.8]} 13. h3 {[%clk 0:02:09.7]} 13... Bxf3 {[%clk
0:02:34.8]} 14. Qxf3 {[%clk 0:02:08.9]} 14... Nxd4 {[%clk 0:02:35.3]} 15. Qh5
{[%clk 0:02:06.2]} 15... Re8 {[%clk 0:02:06.3]} 16. Bxh6 {[%clk 0:01:54.5]}
16... Ne6 {[%clk 0:00:55.8]} 17. Bd2 {[%clk 0:01:52]} 17... g6 {[%clk 0:00:49]}
18. Bxg6 {[%clk 0:01:49.4]} 18... fxg6 {[%clk 0:00:42.7]} 19. Qxg6+ {[%clk
0:01:50.3]} 19... Ng7 {[%clk 0:00:43.2]} 20. Bh6 {[%clk 0:01:46.3]} 20... Bf8
{[%clk 0:00:40.6]} 21. Rad1 {[%clk 0:01:26.3]} 21... Rxe1+ {[%clk 0:00:33.8]}
22. Rxe1 {[%clk 0:01:26.3]} 22... Qd6 {[%clk 0:00:34.5]} 23. Qg5 {[%clk
0:01:24.8]} 23... Rd8 {[%clk 0:00:19.9]} 24. Qd2 {[%clk 0:01:24.1]} 24... d4
{[%clk 0:00:18]} 25. Re4 {[%clk 0:01:23.6]} 25... d3 {[%clk 0:00:13.3]} 26. Rg4
{[%clk 0:01:23.6]} 26... Rd7 {[%clk 0:00:14]} 27. g3 {[%clk 0:01:13.9]} 27... a6
{[%clk 0:00:12.1]} 28. Qc3 {[%clk 0:01:10.5]} 28... Qxh6 {[%clk 0:00:10.8]} 29.
Qc4+ {[%clk 0:01:09.6]} 29... Rf7 {[%clk 0:00:10.2]} 30. Rf4 {[%clk 0:01:08.6]}
30... Qf6 {[%clk 0:00:11.1]} 31. Rxf6 {[%clk 0:01:08.5]} 1-0

[Event "Early-Titled-Tuesday-Blitz-July-09-2024"]
[Site "Chess.com"]
[Date "2024.07.09"]
[Round "1"]
[White "samolo"]
[Black "stepanosinovsky"]
[Result "0-1"]
[WhiteElo "2642"]
[BlackElo "2356"]
[TimeControl "180+1"]
[EndTime "8:06:06 PDT"]
[Termination "stepanosinovsky won by resignation"]

1. Nf3 {[%clk 0:02:58.9]} 1... Nf6 {[%clk 0:02:58.7]} 2. c4 {[%clk 0:02:59.8]}
2... g6 {[%clk 0:02:59.3]} 3. g3 {[%clk 0:02:58.7]} 3... Bg7 {[%clk 0:02:59.3]}
4. Bg2 {[%clk 0:02:59.6]} 4... O-O {[%clk 0:02:59.9]} 5. O-O {[%clk 0:02:59.5]}
5... d6 {[%clk 0:03:00.5]} 6. d3 {[%clk 0:02:59.4]} 6... Nc6 {[%clk 0:02:57.5]}
7. Nc3 {[%clk 0:02:59.7]} 7... e5 {[%clk 0:02:56.2]} 8. Rb1 {[%clk 0:02:59.1]}
8... a5 {[%clk 0:02:50.9]} 9. a3 {[%clk 0:02:57.4]} 9... Nd4 {[%clk 0:02:50.5]}
10. Nd2 {[%clk 0:02:56.1]} 10... c6 {[%clk 0:02:32.1]} 11. b4 {[%clk 0:02:54.6]}
11... axb4 {[%clk 0:02:31.3]} 12. axb4 {[%clk 0:02:54.1]} 12... d5 {[%clk
0:02:26.3]} 13. e3 {[%clk 0:02:51.1]} 13... Ne6 {[%clk 0:02:21.9]} 14. Bb2
{[%clk 0:02:48.9]} 14... d4 {[%clk 0:02:16.2]} 15. exd4 {[%clk 0:02:48.1]} 15...
Nxd4 {[%clk 0:02:13.7]} 16. Nce4 {[%clk 0:02:34.9]} 16... Nxe4 {[%clk
0:01:45.3]} 17. Nxe4 {[%clk 0:02:30.1]} 17... Bf5 {[%clk 0:01:45]} 18. c5 {[%clk
0:02:22.1]} 18... Qe7 {[%clk 0:01:26.3]} 19. Nd6 {[%clk 0:02:19.7]} 19... Ra7
{[%clk 0:01:20]} 20. Bxd4 {[%clk 0:02:17.9]} 20... exd4 {[%clk 0:01:19.8]} 21.
Nxf5 {[%clk 0:02:17]} 21... gxf5 {[%clk 0:01:20.7]} 22. Re1 {[%clk 0:02:12.6]}
22... Qf6 {[%clk 0:01:20]} 23. b5 {[%clk 0:02:08.7]} 23... f4 {[%clk 0:01:17.2]}
24. Qg4 {[%clk 0:01:40.6]} 24... fxg3 {[%clk 0:01:13.6]} 25. hxg3 {[%clk
0:01:40]} 25... Qg6 {[%clk 0:01:13.9]} 26. Qf3 {[%clk 0:01:35.9]} 26... Ra3
{[%clk 0:01:11.4]} 27. Red1 {[%clk 0:01:24]} 27... Rc3 {[%clk 0:01:11.2]} 28.
bxc6 {[%clk 0:01:06.7]} 28... bxc6 {[%clk 0:01:10.5]} 29. Qxc6 {[%clk
0:01:05.2]} 29... Qxc6 {[%clk 0:01:10.1]} 30. Bxc6 {[%clk 0:01:05.2]} 30... Rxc5
{[%clk 0:01:10.8]} 31. Be4 {[%clk 0:00:55.5]} 31... Rfc8 {[%clk 0:01:09.9]} 32.
Bf3 {[%clk 0:00:56.4]} 32... Bh6 {[%clk 0:01:05.9]} 33. Kg2 {[%clk 0:00:54.2]}
33... Rc1 {[%clk 0:01:05.8]} 34. Rdxc1 {[%clk 0:00:54.1]} 34... Rxc1 {[%clk
0:01:04.6]} 35. Rb2 {[%clk 0:00:55]} 35... Bf8 {[%clk 0:01:00.1]} 36. Rb1 {[%clk
0:00:55.9]} 36... Rxb1 {[%clk 0:00:59.7]} 0-1

[Event "Early-Titled-Tuesday-Blitz-July-09-2024"]
[Site "Chess.com"]
[Date "2024.07.09"]
[Round "1"]
[White "Schattman"]
[Black "Igor_Janik"]
[Result "0-1"]
[WhiteElo "2484"]
[BlackElo "2895"]
[TimeControl "180+1"]
[EndTime "8:06:07 PDT"]
[Termination "Igor_Janik won on time"]

1. d4 {[%clk 0:03:00.9]} 1... Nf6 {[%clk 0:03:00]} 2. Bf4 {[%clk 0:02:59.6]}
2... d6 {[%clk 0:02:56.2]} 3. e3 {[%clk 0:02:58.6]} 3... Nbd7 {[%clk 0:02:56.3]}
4. Nf3 {[%clk 0:02:57.1]} 4... Nh5 {[%clk 0:02:56.2]} 5. Bg5 {[%clk 0:02:51.6]}
5... h6 {[%clk 0:02:55]} 6. Bh4 {[%clk 0:02:51.5]} 6... g5 {[%clk 0:02:55.5]} 7.
Nfd2 {[%clk 0:02:48.2]} 7... Ndf6 {[%clk 0:02:53.9]} 8. Be2 {[%clk 0:02:40.2]}
8... gxh4 {[%clk 0:02:51.3]} 9. Bxh5 {[%clk 0:02:39.5]} 9... e5 {[%clk 0:02:52]}
10. dxe5 {[%clk 0:02:26.3]} 10... dxe5 {[%clk 0:02:50.3]} 11. Bf3 {[%clk
0:02:26.2]} 11... c6 {[%clk 0:02:41.1]} 12. O-O {[%clk 0:02:23.3]} 12... h3
{[%clk 0:02:36]} 13. g3 {[%clk 0:02:20.2]} 13... h5 {[%clk 0:02:35.9]} 14. Nc3
{[%clk 0:02:10.8]} 14... Be6 {[%clk 0:02:21.6]} 15. a3 {[%clk 0:02:04.3]} 15...
Be7 {[%clk 0:02:18.6]} 16. Qe2 {[%clk 0:01:48.6]} 16... Qc7 {[%clk 0:02:12.9]}
17. Nde4 {[%clk 0:01:43.7]} 17... Ng4 {[%clk 0:02:09.9]} 18. b4 {[%clk
0:01:36.2]} 18... f5 {[%clk 0:02:03.9]} 19. Nc5 {[%clk 0:01:17.6]} 19... Bxc5
{[%clk 0:02:03.6]} 20. bxc5 {[%clk 0:01:17.6]} 20... O-O-O {[%clk 0:01:52.3]}
21. Rab1 {[%clk 0:00:41.5]} 21... Qa5 {[%clk 0:01:47]} 22. Nb5 {[%clk
0:00:19.1]} 22... cxb5 {[%clk 0:01:24.6]} 23. Rxb5 {[%clk 0:00:17.9]} 23... Qa4
{[%clk 0:01:25.3]} 24. Bxb7+ {[%clk 0:00:14.2]} 24... Kc7 {[%clk 0:01:24.7]} 25.
Bf3 {[%clk 0:00:07.7]} 25... Bc4 {[%clk 0:01:15.6]} 26. Rb7+ {[%clk 0:00:05.9]}
26... Kc8 {[%clk 0:01:16.2]} 27. Rfb1 {[%clk 0:00:02.9]} 27... Bxe2 {[%clk
0:01:08.1]} 28. Rb8+ {[%clk 0:00:02.2]} 28... Kd7 {[%clk 0:01:08.8]} 29. R1b7+
{[%clk 0:00:02.5]} 29... Ke6 {[%clk 0:01:09.4]} 0-1

[Event "Early-Titled-Tuesday-Blitz-July-09-2024"]
[Site "Chess.com"]
[Date "2024.07.09"]
[Round "1"]
[White "Sadykov_Ramil"]
[Black "FMalexhdez"]
[Result "1-0"]
[WhiteElo "2611"]
[BlackElo "2278"]
[TimeControl "180+1"]
[EndTime "8:06:09 PDT"]
[Termination "Sadykov_Ramil won by resignation"]

1. e4 {[%clk 0:03:00.5]} 1... c5 {[%clk 0:02:59.7]} 2. Nf3 {[%clk 0:02:59.7]}
2... d6 {[%clk 0:02:59.8]} 3. Bc4 {[%clk 0:02:57.5]} 3... Nf6 {[%clk 0:02:58.2]}
4. d3 {[%clk 0:02:57.5]} 4... Nc6 {[%clk 0:02:57.4]} 5. c3 {[%clk 0:02:55.3]}
5... g6 {[%clk 0:02:55.4]} 6. O-O {[%clk 0:02:52.9]} 6... Bg7 {[%clk 0:02:55.9]}
7. Re1 {[%clk 0:02:51.8]} 7... O-O {[%clk 0:02:54.6]} 8. Nbd2 {[%clk 0:02:51.8]}
8... a6 {[%clk 0:02:54.4]} 9. a4 {[%clk 0:02:51.7]} 9... e5 {[%clk 0:02:52.1]}
10. Nf1 {[%clk 0:02:49]} 10... Be6 {[%clk 0:02:50.8]} 11. Bg5 {[%clk 0:02:40.7]}
11... h6 {[%clk 0:02:49.1]} 12. Bxf6 {[%clk 0:02:40.7]} 12... Bxf6 {[%clk
0:02:48.3]} 13. Ne3 {[%clk 0:02:37.6]} 13... h5 {[%clk 0:02:40.5]} 14. Bd5
{[%clk 0:02:17.5]} 14... Bg7 {[%clk 0:02:14.1]} 15. Qb3 {[%clk 0:02:15.6]} 15...
Qd7 {[%clk 0:02:09.7]} 16. a5 {[%clk 0:02:05.8]} 16... Bh6 {[%clk 0:02:07.6]}
17. h3 {[%clk 0:01:52.7]} 17... Kg7 {[%clk 0:02:02.2]} 18. Nc4 {[%clk
0:01:51.1]} 18... Rae8 {[%clk 0:01:49.4]} 19. Nb6 {[%clk 0:01:29.4]} 19... Qe7
{[%clk 0:01:42.1]} 20. Nh2 {[%clk 0:01:26.9]} 20... f5 {[%clk 0:01:28]} 21. Bxe6
{[%clk 0:01:22]} 21... Qxe6 {[%clk 0:01:27]} 22. Qxe6 {[%clk 0:01:22.6]} 22...
Rxe6 {[%clk 0:01:26.3]} 23. Nf1 {[%clk 0:01:18.7]} 23... fxe4 {[%clk 0:01:23.3]}
24. dxe4 {[%clk 0:01:18.4]} 24... Rf7 {[%clk 0:01:10.4]} 25. Ne3 {[%clk
0:01:08.3]} 25... Bxe3 {[%clk 0:01:09]} 26. Rxe3 {[%clk 0:01:09.2]} 26... Kf8
{[%clk 0:01:04.3]} 27. Nc4 {[%clk 0:01:04.4]} 27... Ke7 {[%clk 0:01:02.4]} 28.
Rd1 {[%clk 0:01:05]} 28... Ref6 {[%clk 0:01:01]} 29. Rd2 {[%clk 0:01:01]} 29...
g5 {[%clk 0:00:59.5]} 30. Red3 {[%clk 0:01:00.5]} 30... Rf8 {[%clk 0:00:44.3]}
31. Nxd6 {[%clk 0:00:55.8]} 31... Nxa5 {[%clk 0:00:37.2]} 32. Nf5+ {[%clk
0:00:55]} 32... Kf7 {[%clk 0:00:34.8]} 33. Rd7+ {[%clk 0:00:53.6]} 33... Kg8
{[%clk 0:00:32.9]} 34. Rg7+ {[%clk 0:00:52.4]} 34... Kh8 {[%clk 0:00:33]} 35.
Rdd7 {[%clk 0:00:50.8]} 1-0

[Event "Early-Titled-Tuesday-Blitz-July-09-2024"]
[Site "Chess.com"]
[Date "2024.07.09"]
[Round "1"]
[White "ShiroglanTalibov"]
[Black "GMMikhailKazakov"]
[Result "1/2-1/2"]
[WhiteElo "2917"]
[BlackElo "2510"]
[TimeControl "180+1"]
[EndTime "8:06:14 PDT"]
[Termination "Game drawn by repetition"]

1. d4 {[%clk 0:03:00.9]} 1... Nf6 {[%clk 0:02:57.3]} 2. c4 {[%clk 0:03:00.8]}
2... e6 {[%clk 0:02:54.9]} 3. Nf3 {[%clk 0:03:00.3]} 3... b6 {[%clk 0:02:52.8]}
4. Nc3 {[%clk 0:02:58.1]} 4... Bb7 {[%clk 0:02:50.5]} 5. Bg5 {[%clk 0:02:57.8]}
5... Be7 {[%clk 0:02:47.9]} 6. Qc2 {[%clk 0:02:51.9]} 6... h6 {[%clk 0:02:16.4]}
7. Bh4 {[%clk 0:02:50.9]} 7... O-O {[%clk 0:02:16.4]} 8. e3 {[%clk 0:02:44.6]}
8... d6 {[%clk 0:02:14.6]} 9. Bd3 {[%clk 0:02:44.3]} 9... Nbd7 {[%clk 0:02:14]}
10. O-O {[%clk 0:02:43.7]} 10... Re8 {[%clk 0:02:10.9]} 11. e4 {[%clk
0:02:42.2]} 11... e5 {[%clk 0:02:06]} 12. d5 {[%clk 0:02:42.3]} 12... Nh5 {[%clk
0:02:05.6]} 13. Bg3 {[%clk 0:02:39.4]} 13... Nf4 {[%clk 0:02:01.2]} 14. Ne2
{[%clk 0:02:32.6]} 14... g5 {[%clk 0:01:57.6]} 15. Bxf4 {[%clk 0:02:31.7]} 15...
exf4 {[%clk 0:01:56.8]} 16. Ned4 {[%clk 0:02:29.4]} 16... Bf8 {[%clk 0:01:51.6]}
17. Rfe1 {[%clk 0:02:25.7]} 17... Qf6 {[%clk 0:01:50.6]} 18. Nf5 {[%clk
0:02:25.2]} 18... Ne5 {[%clk 0:01:49.2]} 19. Nxe5 {[%clk 0:02:25.2]} 19... Qxe5
{[%clk 0:01:48.5]} 20. Rac1 {[%clk 0:02:18.1]} 20... Bc8 {[%clk 0:01:47.8]} 21.
Kf1 {[%clk 0:02:16.6]} 21... a5 {[%clk 0:01:38.7]} 22. b3 {[%clk 0:02:15.6]}
22... Bxf5 {[%clk 0:01:12.4]} 23. exf5 {[%clk 0:02:16.5]} 23... Qd4 {[%clk
0:01:13]} 24. Be2 {[%clk 0:01:59.1]} 24... Bg7 {[%clk 0:01:10.3]} 25. Bh5 {[%clk
0:01:59.2]} 25... Bf6 {[%clk 0:01:05.4]} 26. a3 {[%clk 0:01:51.1]} 26... Kg7
{[%clk 0:01:04.3]} 27. g3 {[%clk 0:01:50.2]} 27... fxg3 {[%clk 0:00:58.2]} 28.
hxg3 {[%clk 0:01:51.1]} 28... Qb2 {[%clk 0:00:57.7]} 29. a4 {[%clk 0:01:45.4]}
29... Rxe1+ {[%clk 0:00:45.8]} 30. Kxe1 {[%clk 0:01:46.3]} 30... Re8+ {[%clk
0:00:45.4]} 31. Kf1 {[%clk 0:01:42.2]} 31... Qxc2 {[%clk 0:00:30.7]} 32. Rxc2
{[%clk 0:01:43.1]} 32... Bd4 {[%clk 0:00:30.9]} 33. Bg4 {[%clk 0:01:34.9]} 33...
Kf6 {[%clk 0:00:29.8]} 34. Rd2 {[%clk 0:01:31.7]} 34... Bc5 {[%clk 0:00:29.7]}
35. Rd3 {[%clk 0:01:28.8]} 35... Re4 {[%clk 0:00:29]} 36. Bh5 {[%clk 0:01:27]}
36... g4 {[%clk 0:00:24.5]} 37. Rd2 {[%clk 0:01:20.5]} 37... Bb4 {[%clk
0:00:20.8]} 38. Rd1 {[%clk 0:01:19.3]} 38... Bc5 {[%clk 0:00:20.5]} 39. Rd2
{[%clk 0:01:19.2]} 39... Bb4 {[%clk 0:00:20.6]} 40. Rc2 {[%clk 0:01:19.5]} 40...
Bc5 {[%clk 0:00:20.8]} 41. Rd2 {[%clk 0:01:04.2]} 1/2-1/2

[Event "Early-Titled-Tuesday-Blitz-July-09-2024"]
[Site "Chess.com"]
[Date "2024.07.09"]
[Round "1"]
[White "Arystanner"]
[Black "amylazy"]
[Result "1-0"]
[WhiteElo "2895"]
[BlackElo "2485"]
[TimeControl "180+1"]
[EndTime "8:06:17 PDT"]
[Termination "Arystanner won by resignation"]

1. d4 {[%clk 0:03:00.9]} 1... Nf6 {[%clk 0:02:55.4]} 2. c4 {[%clk 0:03:00.7]}
2... g6 {[%clk 0:02:55.5]} 3. Nc3 {[%clk 0:03:00.9]} 3... d5 {[%clk 0:02:55.3]}
4. Nf3 {[%clk 0:02:59.5]} 4... Bg7 {[%clk 0:02:54.6]} 5. e3 {[%clk 0:02:59.7]}
5... O-O {[%clk 0:02:50.3]} 6. cxd5 {[%clk 0:03:00]} 6... Nxd5 {[%clk
0:02:46.5]} 7. Bc4 {[%clk 0:03:00.2]} 7... Nxc3 {[%clk 0:02:45]} 8. bxc3 {[%clk
0:03:01.1]} 8... c5 {[%clk 0:02:45.8]} 9. O-O {[%clk 0:03:01.4]} 9... Qc7 {[%clk
0:02:45.3]} 10. Qe2 {[%clk 0:03:01.8]} 10... Nc6 {[%clk 0:02:44.2]} 11. Rd1
{[%clk 0:02:57.4]} 11... Bg4 {[%clk 0:02:44.1]} 12. Bb2 {[%clk 0:02:42.5]} 12...
cxd4 {[%clk 0:02:42.7]} 13. cxd4 {[%clk 0:02:39.8]} 13... Bxf3 {[%clk
0:02:42.6]} 14. gxf3 {[%clk 0:02:35.7]} 14... Rac8 {[%clk 0:02:38.9]} 15. Rac1
{[%clk 0:02:35.6]} 15... Qa5 {[%clk 0:02:39.1]} 16. f4 {[%clk 0:02:33.2]} 16...
e6 {[%clk 0:02:30.7]} 17. Bb3 {[%clk 0:02:32.5]} 17... Ne7 {[%clk 0:02:30.1]}
18. Rxc8 {[%clk 0:02:23.5]} 18... Rxc8 {[%clk 0:02:31]} 19. Qf3 {[%clk
0:02:21.3]} 19... Qb6 {[%clk 0:02:28.5]} 20. Rc1 {[%clk 0:02:16.7]} 20... Rxc1+
{[%clk 0:02:27.2]} 21. Bxc1 {[%clk 0:02:17.6]} 21... Nf5 {[%clk 0:02:22.5]} 22.
Qe4 {[%clk 0:02:03.8]} 22... Bf8 {[%clk 0:02:20.6]} 23. Qc2 {[%clk 0:01:54.2]}
23... Qa5 {[%clk 0:02:18.7]} 24. Bd2 {[%clk 0:01:53.6]} 24... Qd8 {[%clk
0:02:16.1]} 25. Qc4 {[%clk 0:01:38.6]} 25... Nh4 {[%clk 0:02:14.5]} 26. Bd1
{[%clk 0:01:38.6]} 26... Qb6 {[%clk 0:02:09]} 27. Kf1 {[%clk 0:01:31.6]} 27...
Qb1 {[%clk 0:02:06.2]} 28. Ke2 {[%clk 0:01:31.7]} 28... Qf5 {[%clk 0:02:05.9]}
29. Qc2 {[%clk 0:01:06.6]} 29... Qg4+ {[%clk 0:02:04.5]} 30. Kd3 {[%clk
0:01:06.9]} 30... Qg2 {[%clk 0:01:59.2]} 31. Qc8 {[%clk 0:00:48.7]} 31... Qxf2
{[%clk 0:01:15]} 32. Bb4 {[%clk 0:00:35.6]} 32... Qf1+ {[%clk 0:01:14.9]} 33.
Kc2 {[%clk 0:00:35.4]} 33... Qg2+ {[%clk 0:01:07.1]} 34. Kb1 {[%clk 0:00:31.5]}
34... Qe4+ {[%clk 0:00:57.2]} 35. Bc2 {[%clk 0:00:30.9]} 35... Qh1+ {[%clk
0:00:56.7]} 36. Kb2 {[%clk 0:00:31.2]} 1-0

[Event "Early-Titled-Tuesday-Blitz-July-09-2024"]
[Site "Chess.com"]
[Date "2024.07.09"]
[Round "1"]
[White "familijatop71"]
[Black "deribas12345"]
[Result "0-1"]
[WhiteElo "2317"]
[BlackElo "2639"]
[TimeControl "180+1"]
[EndTime "8:06:18 PDT"]
[Termination "deribas12345 won by resignation"]

1. e4 {[%clk 0:03:00.9]} 1... c5 {[%clk 0:02:56.9]} 2. c3 {[%clk 0:03:00.8]}
2... e6 {[%clk 0:02:56.9]} 3. d4 {[%clk 0:03:00.4]} 3... d5 {[%clk 0:02:57.8]}
4. e5 {[%clk 0:03:00.5]} 4... Qa5 {[%clk 0:02:57.4]} 5. Nf3 {[%clk 0:03:01.1]}
5... cxd4 {[%clk 0:02:57.3]} 6. Nxd4 {[%clk 0:03:01.1]} 6... Nc6 {[%clk
0:02:56.6]} 7. Nxc6 {[%clk 0:02:59.6]} 7... bxc6 {[%clk 0:02:57.5]} 8. Bd3
{[%clk 0:02:59.4]} 8... c5 {[%clk 0:02:56.2]} 9. O-O {[%clk 0:02:58.5]} 9... Ne7
{[%clk 0:02:56.5]} 10. Nd2 {[%clk 0:02:55.9]} 10... Nc6 {[%clk 0:02:55.7]} 11.
Nf3 {[%clk 0:02:51.9]} 11... Ba6 {[%clk 0:02:54.3]} 12. Bf4 {[%clk 0:02:43.2]}
12... Be7 {[%clk 0:02:49.7]} 13. a3 {[%clk 0:02:32.9]} 13... Bxd3 {[%clk
0:02:47.2]} 14. Qxd3 {[%clk 0:02:32.4]} 14... c4 {[%clk 0:02:45]} 15. Qd2 {[%clk
0:02:23.3]} 15... h6 {[%clk 0:02:42.7]} 16. Nd4 {[%clk 0:02:08.6]} 16... Nxd4
{[%clk 0:02:37.1]} 17. Qxd4 {[%clk 0:02:02.1]} 17... Rb8 {[%clk 0:02:36.5]} 18.
Rab1 {[%clk 0:01:51]} 18... O-O {[%clk 0:02:31.1]} 19. Qe3 {[%clk 0:01:44.5]}
19... Rb5 {[%clk 0:02:20.8]} 20. Qg3 {[%clk 0:01:41.9]} 20... Kh8 {[%clk
0:02:18.9]} 21. Qh3 {[%clk 0:01:35.8]} 21... Kh7 {[%clk 0:02:13.6]} 22. Qh5
{[%clk 0:01:31.2]} 22... Qb6 {[%clk 0:02:07.4]} 23. g4 {[%clk 0:01:19.2]} 23...
Rxb2 {[%clk 0:01:53.3]} 24. Rxb2 {[%clk 0:01:19.1]} 24... Qxb2 {[%clk
0:01:54.2]} 25. g5 {[%clk 0:01:19.3]} 25... Qxc3 {[%clk 0:01:50.4]} 26. gxh6
{[%clk 0:01:11.2]} 26... g6 {[%clk 0:01:46.3]} 27. Qe2 {[%clk 0:01:04.7]} 27...
Rb8 {[%clk 0:01:15.7]} 28. Bd2 {[%clk 0:00:51.3]} 28... Qd3 {[%clk 0:01:12.9]}
29. Qe1 {[%clk 0:00:39.9]} 29... d4 {[%clk 0:01:06]} 30. f4 {[%clk 0:00:39.1]}
30... c3 {[%clk 0:01:03.9]} 31. Bc1 {[%clk 0:00:37.4]} 31... Rb1 {[%clk
0:01:00.5]} 32. Kg2 {[%clk 0:00:28.9]} 32... Qc2+ {[%clk 0:00:57.9]} 33. Kh3
{[%clk 0:00:27.3]} 33... Rxc1 {[%clk 0:00:53.4]} 34. Qxc1 {[%clk 0:00:25.9]}
34... Qxc1 {[%clk 0:00:53.8]} 35. Rxc1 {[%clk 0:00:25.7]} 35... Bxa3 {[%clk
0:00:53.9]} 36. Ra1 {[%clk 0:00:22.1]} 36... c2 {[%clk 0:00:52]} 0-1

[Event "Early-Titled-Tuesday-Blitz-July-09-2024"]
[Site "Chess.com"]
[Date "2024.07.09"]
[Round "1"]
[White "TheoSlade"]
[Black "alexrustemov"]
[Result "0-1"]
[WhiteElo "2480"]
[BlackElo "2882"]
[TimeControl "180+1"]
[EndTime "8:06:19 PDT"]
[Termination "alexrustemov won by resignation"]

1. d4 {[%clk 0:03:00.9]} 1... g6 {[%clk 0:02:59.7]} 2. c4 {[%clk 0:03:00.5]}
2... Bg7 {[%clk 0:03:00.2]} 3. e4 {[%clk 0:03:00.7]} 3... d6 {[%clk 0:03:00.3]}
4. Nc3 {[%clk 0:03:00.3]} 4... Nc6 {[%clk 0:02:59.1]} 5. Be3 {[%clk 0:02:41.6]}
5... e5 {[%clk 0:02:58]} 6. dxe5 {[%clk 0:02:34.4]} 6... dxe5 {[%clk 0:02:55.9]}
7. Qxd8+ {[%clk 0:02:33.2]} 7... Nxd8 {[%clk 0:02:55.8]} 8. Nb5 {[%clk
0:02:16.7]} 8... Ne6 {[%clk 0:02:55.1]} 9. Nxa7 {[%clk 0:02:15.2]} 9... Bd7
{[%clk 0:02:54.8]} 10. Nb5 {[%clk 0:02:13.8]} 10... Ke7 {[%clk 0:02:45.8]} 11.
Nf3 {[%clk 0:02:06.2]} 11... c6 {[%clk 0:02:45.8]} 12. Nc3 {[%clk 0:02:05]}
12... f5 {[%clk 0:02:45.5]} 13. exf5 {[%clk 0:02:01]} 13... gxf5 {[%clk
0:02:45.3]} 14. Be2 {[%clk 0:01:56.7]} 14... Nd4 {[%clk 0:02:36.8]} 15. Bg5+
{[%clk 0:01:43.7]} 15... Kf7 {[%clk 0:02:36.2]} 16. O-O {[%clk 0:01:37.8]} 16...
Nxe2+ {[%clk 0:02:27.8]} 17. Nxe2 {[%clk 0:01:37.3]} 17... Be6 {[%clk
0:02:28.4]} 18. b3 {[%clk 0:01:33.2]} 18... Ne7 {[%clk 0:02:26.7]} 19. Bxe7
{[%clk 0:01:00.3]} 19... Kxe7 {[%clk 0:02:26.2]} 20. Ng5 {[%clk 0:00:52.1]}
20... Bd7 {[%clk 0:02:21.1]} 21. a4 {[%clk 0:00:49]} 21... h6 {[%clk 0:02:19.1]}
22. Nh3 {[%clk 0:00:48.2]} 22... Be6 {[%clk 0:02:16.6]} 23. Rad1 {[%clk
0:00:44.1]} 23... Rhd8 {[%clk 0:02:10]} 24. f3 {[%clk 0:00:37.1]} 24... Kf6
{[%clk 0:02:08]} 25. Nf2 {[%clk 0:00:37.1]} 25... Bf8 {[%clk 0:02:08]} 26. Rxd8
{[%clk 0:00:32.3]} 26... Rxd8 {[%clk 0:02:07.5]} 27. Rd1 {[%clk 0:00:33]} 27...
Rb8 {[%clk 0:01:57]} 28. Nd3 {[%clk 0:00:28.3]} 28... b5 {[%clk 0:01:56]} 29.
axb5 {[%clk 0:00:27.8]} 29... cxb5 {[%clk 0:01:56.2]} 30. cxb5 {[%clk
0:00:22.8]} 30... Bxb3 {[%clk 0:01:54.3]} 31. Rc1 {[%clk 0:00:18.2]} 31... Rxb5
{[%clk 0:01:46.9]} 32. Rc6+ {[%clk 0:00:18.5]} 32... Be6 {[%clk 0:01:46.7]} 33.
f4 {[%clk 0:00:14.7]} 33... e4 {[%clk 0:01:44.2]} 34. Ne5 {[%clk 0:00:12.4]}
34... Bc5+ {[%clk 0:01:44.2]} 35. Kf1 {[%clk 0:00:12.2]} 35... Rb1+ {[%clk
0:01:44.2]} 36. Nc1 {[%clk 0:00:11.7]} 36... Rxc1+ {[%clk 0:01:43.8]} 37. Ke2
{[%clk 0:00:12.4]} 37... Ba3 {[%clk 0:01:21.3]} 38. Ra6 {[%clk 0:00:12.9]} 38...
Bb2 {[%clk 0:01:18.6]} 39. Nd7+ {[%clk 0:00:05.6]} 39... Ke7 {[%clk 0:01:19]}
40. Ne5 {[%clk 0:00:03.6]} 40... Bxe5 {[%clk 0:01:18]} 41. fxe5 {[%clk
0:00:04.1]} 41... Bc4+ {[%clk 0:01:17.9]} 0-1